bitfinex/quotes_SOLUSD_20241123
["timestamp","ask_amount","ask_price","bid_price","bid_amount"]
[1732325945960,24.35023408,254.91,254.7,3.08867794]
[1732325946263,20.0,254.9,254.7,3.08867794]
[1732325946460,0.57335008,254.89,254.7,3.08867794]
[1732325947178,0.57335008,254.89,254.71,2.5]
[1732325950460,24.35023408,254.91,254.71,2.5]
[1732325950668,20.0,254.9,254.71,2.5]
[1732325950985,23.776884,254.88,254.71,2.5]
[1732325951281,0.57335008,254.87,254.71,2.5]
[1732325951575,20.0,254.9,254.71,2.5]
[1732325951880,43.776884,254.88,254.66,5.0]
[1732325952176,23.776884,254.86,254.66,5.0]
[1732325952363,0.57335008,254.85,254.66,5.0]
[1732325952569,23.776884,254.84,254.66,5.0]
[1732325952873,24.35023408,254.84,254.67,0.58872415]
[1732325953174,0.57335008,254.87,254.7,2.5]
[1732325953472,23.776884,254.86,254.69,0.58865525]
[1732325953672,23.776884,254.84,254.68,2.5]
[1732325953873,0.57335008,254.83,254.68,2.5]
[1732325954861,15.1411,254.82,254.68,2.5]
[1732325955061,15.1411,254.82,254.69,0.58872518]
[1732325956057,15.1411,254.82,254.68,2.5]
[1732325957859,15.1411,254.82,254.7,2.5]
[1732325958490,15.1411,254.82,254.71,0.58868261]
[1732325958790,15.3451,254.88,254.73,2.5]
[1732325959016,15.3451,254.88,254.74,0.58855218]
[1732325960477,15.3451,254.88,254.73,2.5]
[1732325960675,15.3451,254.88,254.74,2.5]
[1732325960875,15.3451,254.88,254.71,22.5]
[1732325961078,15.91845008,254.88,254.74,2.5]
[1732325961791,15.3451,254.88,254.74,2.5]
[1732325962494,15.3451,254.88,254.75,2.5]
[1732325962703,5.75648965,254.89,254.75,2.5]
[1732325962989,15.3451,255.22,255.09,2.5]
[1732325963193,15.3451,255.22,255.13,0.09367462]
[1732325963361,5.88665971,255.25,255.15,0.09367462]
[1732325963678,6.4168,255.28,255.16,0.09367462]
[1732325964462,0.57335008,255.27,255.16,0.09367462]
[1732325965792,23.776884,255.26,255.03,2.5]
[1732325965994,20.0,255.23,255.03,0.58788074]
[1732325966189,23.776884,255.19,254.97,197.47528042]
[1732325966390,23.776884,255.17,254.97,199.97528042]
[1732325966699,0.57335008,255.16,254.99,2.5]
[1732325966868,0.57335008,255.26,255.0,0.58796437]
[1732325967064,0.57335008,255.26,255.02,2.5]
[1732325967293,0.57335008,255.26,255.03,0.58787376]
[1732325967294,20.0,255.24,255.03,0.58787376]
[1732325967500,23.776884,255.21,255.03,20.58787376]
[1732325967667,20.57335008,255.2,255.03,20.58787376]
[1732325967868,20.57335008,255.2,255.03,0.58787376]
[1732325968163,20.57335008,255.2,255.03,20.58787376]
[1732325968869,0.57335008,255.2,255.04,2.5]
[1732325969070,23.776884,255.24,255.04,2.5]
[1732325969291,20.57335008,255.23,255.04,3.08786642]
[1732325969487,23.776884,255.22,255.04,0.58786642]
[1732325969769,20.57335008,255.21,255.04,0.58786642]
[1732325972497,20.0,255.19,255.04,0.58786642]
[1732325972674,20.57335008,255.19,255.04,0.58786642]
[1732325974082,20.0,255.19,255.04,0.58786642]
[1732325974584,20.57335008,255.19,255.04,0.58786642]
[1732325974899,0.57335008,255.19,255.05,2.5]
[1732325975200,20.0,255.2,255.06,3.08778043]
[1732325975408,20.0,255.2,255.06,0.58778043]
[1732325975692,0.57335008,255.19,255.06,3.08778043]
[1732325975902,0.57335008,255.19,255.06,0.58778043]
[1732325976075,20.0,255.2,255.06,0.58778043]
[1732325976277,20.0,255.2,255.05,0.58785522]
[1732325978175,20.0,255.18,255.02,2.5]
[1732325978373,0.57335008,255.17,255.01,0.58793362]
[1732325978701,0.57335008,255.17,255.02,2.5]
[1732325979009,20.0,255.18,255.03,0.58791067]
[1732325979182,20.57335008,255.18,255.03,0.58791067]
[1732325979581,20.0,255.2,255.04,2.5]
[1732325979875,20.57335008,255.27,255.06,2.5]
[1732325980281,20.57335008,255.27,255.06,5.0]
[1732325980474,20.57335008,255.27,255.07,0.58777697]
[1732325980677,0.57335008,255.27,255.08,5.0]
[1732325981703,0.57335008,255.27,255.08,2.5]
[1732325982007,20.0,255.25,255.04,2.5]
[1732325982195,20.0,255.25,254.98,5.41758661]
[1732325982196,23.776884,255.22,254.97,2.5]
[1732325982384,20.0,255.19,254.97,198.06324608]
[1732325982582,35.7615,255.17,254.97,197.47528042]
[1732325982786,23.776884,255.15,254.97,197.47528042]
[1732325982994,20.57335008,255.14,254.97,2.5]
[1732325983201,20.0,255.12,254.97,2.5]
[1732325983505,20.0,255.12,254.98,0.58803823]
[1732325984102,23.776884,255.15,254.98,0.58803823]
[1732325984287,20.57335008,255.14,254.98,0.58803823]
[1732325985213,20.57335008,255.14,254.96,2.5]
[1732325985214,20.57335008,255.14,254.97,0.58802606]
[1732325987410,26.4524941,255.14,254.97,0.58802606]
[1732325988290,20.0,255.13,254.98,22.5]
[1732325988600,20.57335008,255.13,254.92,2.5]
[1732325988807,20.57335008,255.13,254.93,0.58807955]
[1732325989608,20.0,255.11,254.93,3.08807955]
[1732325989795,20.0,255.09,254.93,3.08807955]
[1732325991483,20.0,255.13,254.93,3.08807955]
[1732325991682,20.0,255.13,254.96,2.5]
[1732325991882,20.0,255.13,254.97,0.58797243]
[1732325992092,20.57335008,255.13,254.97,0.58797243]
[1732325992810,20.0,255.13,254.97,0.58797243]
[1732325993305,11.88544402,255.14,254.9,5.41758661]
[1732325993306,20.0,255.11,254.92,2.5]
[1732325993603,0.57335008,255.1,254.92,3.08810122]
[1732325994309,23.776884,255.09,254.92,3.08810122]
[1732325994605,20.57335008,255.08,254.92,3.08810122]
[1732325996495,0.57335008,255.08,254.92,3.08810122]
[1732325996717,20.0,255.11,254.92,3.08810122]
[1732325997008,23.776884,255.09,254.92,0.58810122]
[1732325997204,23.776884,255.07,254.91,3.08812911]
[1732325997582,20.57335008,255.08,254.91,0.58812911]
[1732325997583,20.0,255.04,254.91,0.58812911]
[1732325997802,20.0,255.04,254.84,2.5]
[1732325997803,23.776884,255.01,254.84,2.5]
[1732325998017,20.0,255.0,254.85,0.58828726]
[1732325998997,20.0,255.01,254.86,3.08827069]
[1732325999203,20.0,255.01,254.86,5.58827069]
[1732325999404,20.0,255.01,254.87,20.0]
[1732325999591,20.0,255.03,254.88,0.58817994]
[1732325999799,20.0,255.09,254.88,0.58817994]
[1732325999994,20.0,255.06,254.88,0.58817994]
[1732326000393,23.776884,255.05,254.89,2.5]
[1732326000627,20.0,255.04,254.9,0.58817102]
[1732326001807,23.776884,255.02,254.9,0.58817102]
[1732326002113,23.776884,255.03,254.9,0.58817102]
[1732326002518,0.57335008,255.02,254.9,0.58817102]
[1732326002703,23.776884,255.01,254.86,0.5882248]
[1732326003015,20.57335008,255.0,254.86,0.5882248]
[1732326003227,20.0,255.0,254.86,0.5882248]
[1732326003511,0.57335008,255.0,254.86,0.5882248]
[1732326003811,20.0,255.01,254.83,0.58835235]
[1732326004042,20.0,254.99,254.87,0.58835235]
[1732326004193,20.0,254.99,254.83,0.58825274]
[1732326004194,23.776884,254.98,254.83,0.58825274]
[1732326004722,23.776884,254.98,254.83,3.08825274]
[1732326005411,23.776884,254.98,254.83,23.08825274]
[1732326005616,5.84207047,255.06,254.85,2.5]
[1732326005804,0.57335008,255.09,254.85,2.5]
[1732326005805,0.57335008,255.09,254.88,2.5]
[1732326005990,0.57335008,255.09,254.89,0.58815023]
[1732326006490,0.57335008,255.09,254.81,2.5]
[1732326006693,16.1977,255.07,254.82,0.58827848]
[1732326006895,22.3355,255.03,254.74,2.5]
[1732326007111,20.0,254.98,254.71,6.11724061]
[1732326007313,6.2391,254.94,254.68,6.11724061]
[1732326007522,20.0,254.91,254.69,6.11724061]
[1732326007700,20.0,254.89,254.68,0.58855567]
[1732326007906,27.29441637,254.94,254.61,24.46896246]
[1732326007907,24.35023408,254.88,254.62,8.61724061]
[1732326008104,41.4589,254.87,254.63,3.08866422]
[1732326008320,24.35023408,254.86,254.63,0.58866422]
[1732326008818,24.35023408,254.86,254.65,2.5]
[1732326009119,24.35023408,254.86,254.62,5.28758661]
[1732326009120,30.30378274,254.86,254.62,5.28758661]
[1732326009328,30.30378274,254.86,254.61,2.5]
[1732326009329,6.52689874,254.86,254.65,5.28758661]
[1732326009492,6.52689874,254.86,254.66,0.58859957]
[1732326009698,23.776884,254.85,254.66,5.87618618]
[1732326010104,23.776884,254.83,254.66,5.87618618]
[1732326010304,0.57335008,254.82,254.66,5.28758661]
[1732326010591,0.57335008,254.82,254.61,2.5]
[1732326010592,23.776884,254.81,254.61,2.5]
[1732326010791,5.95354866,254.86,254.61,2.5]
[1732326010792,23.776884,254.79,254.61,2.5]
[1732326011026,23.776884,254.77,254.61,2.5]
[1732326011323,23.776884,254.75,254.61,2.5]
[1732326011622,0.57335008,254.86,254.61,2.5]
[1732326011833,0.57335008,254.86,254.64,2.5]
[1732326011834,23.776884,254.85,254.64,2.5]
[1732326012126,23.776884,254.83,254.66,20.0]
[1732326012301,0.57335008,254.82,254.66,20.0]
[1732326012505,23.776884,254.81,254.65,5.28758661]
[1732326012803,23.776884,254.79,254.65,5.28758661]
[1732326013228,23.776884,254.79,254.63,0.58877383]
[1732326013600,0.57335008,254.78,254.6,22.5]
[1732326014103,23.776884,254.77,254.6,22.5]
[1732326014420,23.776884,254.75,254.6,2.5]
[1732326015423,23.776884,254.75,254.59,5.87648079]
[1732326015617,23.776884,254.73,254.53,195.31357307]
[1732326015806,23.776884,254.71,254.53,195.31357307]
[1732326016021,23.776884,254.69,254.53,195.31357307]
[1732326016318,0.57335008,254.68,254.53,195.31357307]
[1732326016831,23.776884,254.67,254.53,195.31357307]
[1732326017004,0.57335008,254.66,254.53,195.31357307]
[1732326017201,24.35023408,254.73,254.53,195.31357307]
[1732326017417,24.35023408,254.73,254.5,2.5]
[1732326018423,24.35023408,254.73,254.49,5.28758661]
[1732326019920,24.35023408,254.73,254.5,20.0]
[1732326020709,0.57335008,254.73,254.5,20.58917357]
[1732326021830,0.57335008,254.73,254.52,2.5]
[1732326022000,0.57335008,254.73,254.53,0.58897808]
[1732326022427,0.57335008,254.73,254.52,20.0]
[1732326023013,23.776884,254.72,254.52,20.0]
[1732326023332,23.776884,254.7,254.52,20.0]
[1732326023504,0.57335008,254.69,254.52,20.0]
[1732326023701,23.776884,254.68,254.52,20.0]
[1732326023903,0.57335008,254.73,254.53,0.58904559]
[1732326024122,23.776884,254.72,254.52,20.0]
[1732326024326,23.776884,254.7,254.52,7.78758661]
[1732326024636,0.57335008,254.69,254.53,20.0]
[1732326024807,24.35023408,254.73,254.53,20.0]
[1732326025703,0.57335008,254.73,254.54,0.58906596]
[1732326025930,0.57335008,254.73,254.54,5.28758661]
[1732326026508,0.57335008,254.73,254.55,20.58898201]
[1732326026708,21.4589,254.74,254.56,5.28758661]
[1732326027016,21.4589,254.74,254.57,20.58890842]
[1732326027341,21.4589,254.74,254.59,22.5]
[1732326027630,21.4589,254.74,254.61,22.5]
[1732326027931,21.4589,254.74,254.62,0.58876845]
[1732326029036,21.4589,254.74,254.61,5.28758661]
[1732326029340,0.57335008,254.73,254.55,25.28758661]
[1732326029836,21.4589,254.74,254.55,25.28758661]
[1732326030214,21.4589,254.74,254.55,25.87649861]
[1732326032327,24.35023408,254.73,254.55,25.28758661]
[1732326033413,23.776884,254.71,254.55,5.28758661]
[1732326033631,23.776884,254.69,254.46,5.28758661]
[1732326033817,6.0962,254.66,254.46,5.28758661]
[1732326034014,16.3104,254.64,254.46,5.28758661]
[1732326034223,0.57335008,254.63,254.46,5.28758661]
[1732326034836,0.57335008,254.63,254.47,20.0]
[1732326035011,16.3104,254.64,254.48,5.28758661]
[1732326035213,16.3104,254.64,254.49,20.58913408]
[1732326035542,16.3104,254.64,254.5,5.28758661]
[1732326035832,16.3104,254.64,254.51,20.58908301]
[1732326036131,16.3104,254.64,254.52,5.28758661]
[1732326036639,16.3104,254.64,254.53,20.58906014]
[1732326036955,16.3104,254.64,254.54,5.28758661]
[1732326037114,16.3104,254.64,254.55,20.58898446]
[1732326038335,16.3104,254.64,254.56,5.28758661]
[1732326038541,16.3104,254.64,254.57,20.58892342]
[1732326038711,6.0962,254.66,254.58,5.28758661]
[1732326038911,6.0962,254.66,254.59,20.58891214]
[1732326039412,15.6322,254.71,254.59,20.58891214]
[1732326039916,15.6322,254.71,254.59,5.87649875]
[1732326040229,15.6322,254.71,254.6,20.0]
[1732326040426,15.6322,254.71,254.6,25.28758661]
[1732326042710,15.6322,254.71,254.61,0.5888161]
[1732326042936,15.6322,254.71,254.63,20.0]
[1732326043313,15.6322,254.71,254.63,20.58877655]
[1732326044015,15.6322,254.77,254.67,2.5]
[1732326044216,6.2074,254.78,254.68,5.87625576]
[1732326044546,15.6322,254.83,254.7,2.5]
[1732326044717,15.6322,254.83,254.71,0.58854656]
[1732326044919,5.9151861,254.95,254.71,0.58854656]
[1732326045215,21.8396,254.9,254.73,2.5]
[1732326045418,21.8396,254.9,254.76,2.5]
[1732326045742,21.8396,254.9,254.77,5.87597677]
[1732326046040,21.8396,254.9,254.78,20.0]
[1732326046229,21.8396,254.97,254.78,20.0]
[1732326046434,0.57335008,254.96,254.78,20.0]
[1732326046939,23.776884,254.95,254.77,5.28758661]
[1732326047153,21.8396,254.97,254.77,5.28758661]
[1732326047154,23.776884,254.93,254.78,20.0]
[1732326047326,0.57335008,254.92,254.78,20.0]
[1732326047846,23.776884,254.93,254.78,20.0]
[1732326048038,23.776884,254.95,254.78,20.0]
[1732326048219,23.776884,254.93,254.78,20.0]
[1732326048416,0.57335008,254.92,254.78,20.0]
[1732326048643,23.776884,254.93,254.78,20.0]
[1732326048826,0.57335008,254.92,254.78,20.0]
[1732326049027,24.35023408,254.96,254.78,20.0]
[1732326049621,0.57335008,254.96,254.78,20.0]
[1732326049828,21.8396,254.97,254.8,20.0]
[1732326050131,21.8396,254.97,254.81,8.37592123]
[1732326050332,21.8396,254.97,254.82,20.0]
[1732326051045,0.57335008,254.96,254.82,20.0]
[1732326052648,21.8396,254.97,254.82,20.0]
[1732326053235,24.35023408,254.96,254.81,5.28758661]
[1732326056365,24.35023408,254.96,254.75,20.5884522]
[1732326060870,24.35023408,254.96,254.75,5.87603881]
[1732326061170,24.35023408,254.96,254.71,195.17702363]
[1732326061460,22.35023408,254.96,254.72,0.58852807]
[1732326062464,20.0,254.95,254.72,0.58852807]
[1732326062651,0.57335008,254.94,254.72,0.58852807]
[1732326063345,23.776884,254.93,254.72,0.58852807]
[1732326063570,23.776884,254.91,254.72,0.58852807]
[1732326063741,0.57335008,254.9,254.72,0.58852807]
[1732326065650,23.776884,254.94,254.73,4.84428249]
[1732326065855,0.57335008,254.95,254.74,0.58849737]
[1732326066041,0.57335008,254.95,254.75,4.84428249]
[1732326066255,0.57335008,254.95,254.76,0.58843564]
[1732326067267,0.57335008,254.96,254.76,0.58843564]
[1732326067452,0.57335008,254.96,254.75,4.84428249]
[1732326067760,0.57335008,254.96,254.76,0.58843512]
[1732326068268,0.57335008,254.96,254.76,20.58843512]
[1732326077986,6.37182638,254.96,254.76,20.58843512]
[1732326078280,0.57335008,254.96,254.76,20.58843512]
[1732326079479,0.57335008,254.96,254.76,25.43271761]
[1732326080354,0.57335008,254.96,254.76,5.43271761]
[1732326081379,6.38657177,254.96,254.76,5.43271761]
[1732326081684,0.57335008,254.96,254.76,5.43271761]
[1732326082056,0.57335008,254.96,254.76,4.84428249]
[1732326082372,20.0,254.94,254.76,4.84428249]
[1732326082560,0.57335008,254.93,254.76,4.84428249]
[1732326083564,0.57335008,254.95,254.76,4.84428249]
[1732326085265,27.77030044,254.97,254.76,4.84428249]
[1732326085266,0.57335008,254.96,254.76,4.84428249]
[1732326086279,0.57335008,254.96,254.77,23.776884]
[1732326088486,23.776884,254.95,254.77,23.776884]
[1732326088681,0.57335008,254.94,254.77,23.776884]
[1732326090492,0.57335008,254.94,254.77,29.89412461]
[1732326090666,0.57335008,254.94,254.77,6.11724061]
[1732326090859,44.35023408,254.96,254.76,10.9615231]
[1732326091466,44.35023408,254.96,254.77,6.11724061]
[1732326091986,23.776884,254.94,254.73,6.11724061]
[1732326092189,20.0,254.91,254.72,6.11724061]
[1732326092394,27.77030044,254.97,254.72,6.11724061]
[1732326092395,22.5271,254.87,254.72,6.11724061]
[1732326092575,44.35023408,254.86,254.72,6.11724061]
[1732326092763,44.35023408,254.86,254.69,6.11724061]
[1732326093084,44.35023408,254.86,254.68,6.11724061]
[1732326093475,44.35023408,254.86,254.69,6.11724061]
[1732326093660,44.35023408,254.86,254.68,6.11724061]
[1732326095869,44.35023408,254.86,254.67,6.11724061]
[1732326097265,44.35023408,254.86,254.67,10.69249533]
[1732326097470,44.35023408,254.86,254.68,6.11724061]
[1732326097669,44.35023408,254.86,254.68,10.69249533]
[1732326097879,44.35023408,254.86,254.68,6.11724061]
[1732326098584,44.35023408,254.86,254.67,6.11724061]
[1732326100082,44.35023408,254.86,254.68,4.57525472]
[1732326100280,0.57335008,254.86,254.69,6.11724061]
[1732326101400,0.57335008,254.86,254.68,6.11724061]
[1732326101693,20.57335008,254.86,254.68,10.69249533]
[1732326101878,20.57335008,254.86,254.7,23.776884]
[1732326102089,20.57335008,254.86,254.68,10.69249533]
[1732326102485,20.0,254.84,254.68,6.11724061]
[1732326102694,0.57335008,254.83,254.66,6.11724061]
[1732326103595,0.57335008,254.83,254.66,23.776884]
[1732326103995,0.57335008,254.83,254.66,29.89412461]
[1732326104495,0.57335008,254.83,254.66,6.11724061]
[1732326104677,23.776884,254.84,254.65,6.11724061]
[1732326104879,20.57335008,254.83,254.66,6.11724061]
[1732326105297,20.57335008,254.83,254.65,6.11724061]
[1732326109191,20.57335008,254.83,254.64,6.11724061]
[1732326109486,20.57335008,254.83,254.65,23.776884]
[1732326110290,26.35044047,254.83,254.64,6.11724061]
[1732326110898,20.57335008,254.86,254.66,6.11724061]
[1732326111101,20.57335008,254.86,254.67,6.11724061]
[1732326111289,20.57335008,254.86,254.67,10.64193977]
[1732326111791,20.57335008,254.86,254.68,6.11724061]
[1732326111975,20.0,254.84,254.67,6.11724061]
[1732326112181,0.57335008,254.83,254.66,6.11724061]
[1732326112597,0.57335008,254.83,254.67,23.776884]
[1732326112909,20.0,254.81,254.65,6.11724061]
[1732326113085,0.57335008,254.8,254.65,6.11724061]
[1732326113285,21.276,254.79,254.65,6.11724061]
[1732326113489,0.57335008,254.78,254.65,6.11724061]
[1732326115308,21.276,254.79,254.65,6.11724061]
[1732326115992,21.276,254.79,254.64,6.70609373]
[1732326116187,0.57335008,254.78,254.64,6.11724061]
[1732326116410,0.57335008,254.78,254.63,6.11724061]
[1732326116588,0.57335008,254.78,254.64,23.776884]
[1732326117190,0.57335008,254.78,254.63,6.11724061]
[1732326117400,0.57335008,254.78,254.62,6.11724061]
[1732326118091,0.57335008,254.78,254.62,29.89412461]
[1732326118495,23.776884,254.77,254.62,6.11724061]
[1732326118708,0.57335008,254.76,254.61,6.11724061]
[1732326119390,45.121284,254.75,254.59,6.11724061]
[1732326119603,20.57335008,254.74,254.59,6.11724061]
[1732326120188,20.57335008,254.74,254.57,6.11724061]
[1732326120389,20.0,254.72,254.57,6.11724061]
[1732326120589,0.57335008,254.71,254.56,6.11724061]
[1732326120890,0.57335008,254.71,254.55,6.11724061]
[1732326120891,21.3444,254.69,254.55,6.11724061]
[1732326121093,21.91775008,254.68,254.52,6.11724061]
[1732326121316,45.121284,254.67,254.51,6.11724061]
[1732326121612,23.776884,254.64,254.48,6.11724061]
[1732326121813,0.57335008,254.63,254.48,6.11724061]
[1732326122012,21.3444,254.62,254.47,6.11724061]
[1732326122190,21.3444,254.62,254.45,12.23448123]
[1732326122191,0.57335008,254.61,254.46,6.11724061]
[1732326122596,0.57335008,254.61,254.45,6.11724061]
[1732326123092,0.57335008,254.61,254.46,6.11724061]
[1732326123406,0.57335008,254.61,254.45,6.11724061]
[1732326123618,0.57335008,254.61,254.44,6.11724061]
[1732326123818,0.57335008,254.61,254.46,23.776884]
[1732326124141,0.57335008,254.61,254.45,6.11724061]
[1732326124289,0.57335008,254.61,254.44,6.11724061]
[1732326124695,0.57335008,254.61,254.45,6.11724061]
[1732326124895,6.45596001,254.61,254.45,6.11724061]
[1732326125093,0.57335008,254.61,254.44,6.11724061]
[1732326125395,0.57335008,254.61,254.45,6.11724061]
[1732326125596,0.57335008,254.61,254.44,6.11724061]
[1732326126390,0.57335008,254.61,254.43,6.11724061]
[1732326126590,0.57335008,254.61,254.44,20.0]
[1732326127000,0.57335008,254.61,254.44,26.11724061]
[1732326127200,21.3444,254.62,254.45,0.58927077]
[1732326127497,21.3444,254.62,254.48,6.11724061]
[1732326127697,21.3444,254.62,254.48,20.0]
[1732326128022,21.3444,254.62,254.48,26.11724061]
[1732326128514,21.3444,254.62,254.47,0.58913197]
[1732326128816,21.3444,254.62,254.46,6.11724061]
[1732326129019,21.3444,254.62,254.47,6.11724061]
[1732326129198,21.3444,254.62,254.47,20.0]
[1732326129392,21.3444,254.62,254.48,6.11724061]
[1732326129591,21.3444,254.62,254.47,26.11724061]
[1732326130920,0.57335008,254.61,254.49,20.0]
[1732326131207,0.57335008,254.61,254.46,6.11724061]
[1732326131789,0.57335008,254.61,254.46,20.0]
[1732326131990,0.57335008,254.61,254.45,20.0]
[1732326132589,0.57335008,254.61,254.44,20.0]
[1732326133012,0.57335008,254.61,254.43,20.0]
[1732326133593,0.57335008,254.61,254.42,6.11724061]
[1732326134002,21.3444,254.6,254.41,6.11724061]
[1732326134224,0.57335008,254.59,254.41,6.11724061]
[1732326134394,21.3444,254.58,254.41,6.11724061]
[1732326134595,0.57335008,254.57,254.41,6.11724061]
[1732326135593,0.57335008,254.57,254.4,6.11724061]
[1732326135794,0.57335008,254.57,254.41,6.11724061]
[1732326136196,0.57335008,254.57,254.42,20.0]
[1732326137612,0.57335008,254.57,254.41,26.11724061]
[1732326137797,0.57335008,254.57,254.41,20.0]
[1732326137999,0.57335008,254.57,254.42,23.776884]
[1732326138704,0.57335008,254.57,254.42,20.0]
[1732326139319,21.3444,254.58,254.42,20.0]
[1732326139628,21.3444,254.58,254.42,26.11724061]
[1732326139924,0.57335008,254.57,254.42,26.11724061]
[1732326140799,0.57335008,254.57,254.43,23.776884]
[1732326141511,0.57335008,254.57,254.43,29.89412461]
[1732326143199,0.57335008,254.57,254.42,20.0]
[1732326143421,23.0632,254.56,254.42,20.0]
[1732326143623,6.5653,254.54,254.39,6.11724061]
[1732326143931,6.5653,254.52,254.4,20.0]
[1732326144106,0.57335008,254.51,254.4,20.0]
[1732326144429,16.4979,254.49,254.37,6.11724061]
[1732326144631,0.57335008,254.48,254.35,201.41321387]
[1732326144921,16.4979,254.46,254.35,6.11724061]
[1732326145113,16.4979,254.44,254.34,6.11724061]
[1732326145321,16.4979,254.44,254.31,6.11724061]
[1732326145322,0.57335008,254.43,254.31,6.11724061]
[1732326146030,0.57335008,254.43,254.3,6.11724061]
[1732326146209,6.5653,254.42,254.3,6.11724061]
[1732326146415,6.5653,254.42,254.25,195.29597326]
[1732326146416,16.4979,254.4,254.29,6.11724061]
[1732326146612,6.5653,254.37,254.27,6.11724061]
[1732326146812,17.07125008,254.36,254.23,6.11724061]
[1732326147018,17.07125008,254.36,254.22,6.11724061]
[1732326147504,6.5653,254.33,254.19,18.35172184]
[1732326147706,16.4979,254.31,254.19,6.11724061]
[1732326147920,16.4979,254.31,254.18,6.11724061]
[1732326147921,0.57335008,254.3,254.18,6.11724061]
[1732326148129,0.57335008,254.3,254.17,6.11724061]
[1732326148606,0.57335008,254.3,254.17,23.776884]
[1732326148918,16.4979,254.31,254.21,23.776884]
[1732326149726,16.4979,254.31,254.22,20.0]
[1732326150615,16.4979,254.31,254.21,23.776884]
[1732326151206,16.4979,254.31,254.2,201.77795172]
[1732326151409,16.4979,254.31,254.2,195.66071111]
[1732326151608,0.57335008,254.3,254.2,195.66071111]
[1732326152326,0.57335008,254.3,254.14,12.23448123]
[1732326152327,6.5653,254.29,254.14,6.11724061]
[1732326152624,0.57335008,254.28,254.12,6.11724061]
[1732326153127,6.5653,254.29,254.13,6.11724061]
[1732326153505,6.5653,254.29,254.14,0.58994527]
[1732326153706,6.5653,254.29,254.2,195.66071111]
[1732326153905,6.5653,254.29,254.21,20.0]
[1732326154212,1.29756053,254.29,254.21,20.0]
[1732326154419,1.29756053,254.29,254.21,20.58974843]
[1732326154926,16.4979,254.31,254.21,20.58974843]
[1732326155127,16.4979,254.31,254.21,23.08974843]
[1732326155432,0.57335008,254.53,254.21,23.08974843]
[1732326155433,16.4979,254.52,254.21,25.58974843]
[1732326155623,16.4979,254.5,254.31,20.0]
[1732326155824,0.57335008,254.49,254.31,20.0]
[1732326157111,6.1475,254.49,254.31,20.0]
[1732326157517,6.1475,254.49,254.31,20.58946364]
[1732326160421,22.2924,254.48,254.31,0.58946364]
[1732326160621,0.57335008,254.64,254.27,12.23448123]
[1732326160622,15.6639,254.46,254.29,195.66071111]
[1732326160932,0.57335008,254.45,254.29,195.66071111]
[1732326161630,22.2924,254.44,254.29,195.66071111]
[1732326161933,0.57335008,254.43,254.29,195.66071111]
[1732326162227,0.57335008,254.43,254.3,20.0]
[1732326163131,22.2924,254.44,254.31,23.776884]
[1732326163324,22.2924,254.44,254.32,20.0]
[1732326165554,22.2924,254.44,254.32,26.11724061]
[1732326166526,22.2924,254.44,254.33,6.11724061]
[1732326166728,22.2924,254.44,254.34,20.0]
[1732326167727,22.2924,254.44,254.33,20.0]
[1732326167927,22.2924,254.44,254.33,26.11724061]
[1732326168135,0.57335008,254.43,254.31,20.0]
[1732326169171,0.57335008,254.43,254.3,20.0]
[1732326169536,0.57335008,254.43,254.32,20.0]
[1732326170254,0.57335008,254.43,254.33,23.776884]
[1732326170437,0.57335008,254.43,254.34,20.0]
[1732326171147,0.57335008,254.43,254.31,20.0]
[1732326171449,0.57335008,254.43,254.31,23.776884]
[1732326172250,15.6639,254.42,254.31,23.776884]
[1732326172446,0.57335008,254.41,254.31,20.0]
[1732326172751,0.57335008,254.41,254.33,20.0]
[1732326173136,0.57335008,254.41,254.32,23.776884]
[1732326173655,0.57335008,254.41,254.33,20.0]
[1732326177730,0.57335008,254.41,254.32,23.776884]
[1732326178146,0.57335008,254.41,254.33,20.0]
[1732326178656,0.57335008,254.41,254.32,23.776884]
[1732326180234,0.57335008,254.41,254.33,20.0]
[1732326180432,15.6639,254.42,254.33,20.0]
[1732326180651,15.6639,254.42,254.33,26.11724061]
[1732326180840,15.6639,254.42,254.33,6.11724061]
[1732326181836,15.6639,254.42,254.34,6.11724061]